{"text_format":"3","workbook":"xlsx","n_sheets":1,"sheets":["COSTURI DE RENOVARE"],"not_rendered":{"images":2,"defined_names":4},"read":"whole","date_system":"1900"}

{"sheet":"COSTURI DE RENOVARE","index":0,"n_rows":28,"n_cols":8,"rows_kept":28,"merged":[[25,1,25,5],[26,1,26,5],[27,1,27,5]]}
[null,"FOAIE DE LUCRU COSTURI PENTRU RENOVAREA BUCĂTĂRIEI"]
[]
[null,"Categorie","Elemente","Cantitate","Costul estimat","Costul efectiv","Costul estimat total","Costul efectiv total"]
[null,"Dulapuri","Dulapuri de bază: Modulare standard (cantitate în metri liniari)",25,{"v":5,"d":"5.00 lei"},null,{"$f":"Date[[#This Row],[Cantitate]]*Date[[#This Row],[Costul estimat]]","v":{"v":125,"d":"125 lei"}},{"$f":"Date[[#This Row],[Cantitate]]*Date[[#This Row],[Costul efectiv]]","v":{"v":0,"d":"0 lei"}}]
[null,"Dulapuri","Dulapuri suspendate: Modulare standard (cantitate în metri liniari)",25,{"v":3.5,"d":"3.50 lei"},null,{"$f":"Date[[#This Row],[Cantitate]]*Date[[#This Row],[Costul estimat]]","v":{"v":87.5,"d":"88 lei"}},{"$f":"Date[[#This Row],[Cantitate]]*Date[[#This Row],[Costul efectiv]]","v":{"v":0,"d":"0 lei"}}]
[null,"Aparate pentru curățenie","Mașină de spălat vase: Standard",1,{"v":250,"d":"250.00 lei"},null,{"$f":"Date[[#This Row],[Cantitate]]*Date[[#This Row],[Costul estimat]]","v":{"v":250,"d":"250 lei"}},{"$f":"Date[[#This Row],[Cantitate]]*Date[[#This Row],[Costul efectiv]]","v":{"v":0,"d":"0 lei"}}]
[null,"Aparate pentru curățenie","Dispozitiv pentru gunoi: Standard",1,{"v":175,"d":"175.00 lei"},null,{"$f":"Date[[#This Row],[Cantitate]]*Date[[#This Row],[Costul estimat]]","v":{"v":175,"d":"175 lei"}},{"$f":"Date[[#This Row],[Cantitate]]*Date[[#This Row],[Costul efectiv]]","v":{"v":0,"d":"0 lei"}}]
[null,"Aparate pentru gătit","Aragaz: Standard, inclus în mobilier",1,{"v":375,"d":"375.00 lei"},null,{"$f":"Date[[#This Row],[Cantitate]]*Date[[#This Row],[Costul estimat]]","v":{"v":375,"d":"375 lei"}},{"$f":"Date[[#This Row],[Cantitate]]*Date[[#This Row],[Costul efectiv]]","v":{"v":0,"d":"0 lei"}}]
[null,"Aparate pentru gătit","Cuptor cu microunde: Standard",1,{"v":300,"d":"300.00 lei"},null,{"$f":"Date[[#This Row],[Cantitate]]*Date[[#This Row],[Costul estimat]]","v":{"v":300,"d":"300 lei"}},{"$f":"Date[[#This Row],[Cantitate]]*Date[[#This Row],[Costul efectiv]]","v":{"v":0,"d":"0 lei"}}]
[null,"Blaturi","Suprafață solidă (cantitate în metri liniari)",23,{"v":10,"d":"10.00 lei"},null,{"$f":"Date[[#This Row],[Cantitate]]*Date[[#This Row],[Costul estimat]]","v":{"v":230,"d":"230 lei"}},{"$f":"Date[[#This Row],[Cantitate]]*Date[[#This Row],[Costul efectiv]]","v":{"v":0,"d":"0 lei"}}]
[null,"Uși","Interior: Panouri furniruite",1,{"v":65,"d":"65.00 lei"},null,{"$f":"Date[[#This Row],[Cantitate]]*Date[[#This Row],[Costul estimat]]","v":{"v":65,"d":"65 lei"}},{"$f":"Date[[#This Row],[Cantitate]]*Date[[#This Row],[Costul efectiv]]","v":{"v":0,"d":"0 lei"}}]
[null,"Suplimentare","Suplimentare: Apă fierbinte instant standard",1,{"v":120,"d":"120.00 lei"},null,{"$f":"Date[[#This Row],[Cantitate]]*Date[[#This Row],[Costul estimat]]","v":{"v":120,"d":"120 lei"}},{"$f":"Date[[#This Row],[Cantitate]]*Date[[#This Row],[Costul efectiv]]","v":{"v":0,"d":"0 lei"}}]
[null,"Suplimentare","Suplimentare: Dispenser de săpun",1,{"v":40,"d":"40.00 lei"},null,{"$f":"Date[[#This Row],[Cantitate]]*Date[[#This Row],[Costul estimat]]","v":{"v":40,"d":"40 lei"}},{"$f":"Date[[#This Row],[Cantitate]]*Date[[#This Row],[Costul efectiv]]","v":{"v":0,"d":"0 lei"}}]
[null,"Robinete","Robinet: Monobloc, standard",1,{"v":130,"d":"130.00 lei"},null,{"$f":"Date[[#This Row],[Cantitate]]*Date[[#This Row],[Costul estimat]]","v":{"v":130,"d":"130 lei"}},{"$f":"Date[[#This Row],[Cantitate]]*Date[[#This Row],[Costul efectiv]]","v":{"v":0,"d":"0 lei"}}]
[null,"Pardoseală","Parchet laminat (cantitate în metri pătrați)",165,{"v":3.5,"d":"3.50 lei"},null,{"$f":"Date[[#This Row],[Cantitate]]*Date[[#This Row],[Costul estimat]]","v":{"v":577.5,"d":"578 lei"}},{"$f":"Date[[#This Row],[Cantitate]]*Date[[#This Row],[Costul efectiv]]","v":{"v":0,"d":"0 lei"}}]
[null,"Aparate pentru spălat","Mașină de spălat: Standard",1,{"v":500,"d":"500.00 lei"},null,{"$f":"Date[[#This Row],[Cantitate]]*Date[[#This Row],[Costul estimat]]","v":{"v":500,"d":"500 lei"}},{"$f":"Date[[#This Row],[Cantitate]]*Date[[#This Row],[Costul efectiv]]","v":{"v":0,"d":"0 lei"}}]
[null,"Aparate pentru spălat","Uscător: Standard",1,{"v":375,"d":"375.00 lei"},null,{"$f":"Date[[#This Row],[Cantitate]]*Date[[#This Row],[Costul estimat]]","v":{"v":375,"d":"375 lei"}},{"$f":"Date[[#This Row],[Cantitate]]*Date[[#This Row],[Costul efectiv]]","v":{"v":0,"d":"0 lei"}}]
[null,"Iluminare","Iluminare: Spot încastrat",4,{"v":35,"d":"35.00 lei"},null,{"$f":"Date[[#This Row],[Cantitate]]*Date[[#This Row],[Costul estimat]]","v":{"v":140,"d":"140 lei"}},{"$f":"Date[[#This Row],[Cantitate]]*Date[[#This Row],[Costul efectiv]]","v":{"v":0,"d":"0 lei"}}]
[null,"Frigidere","Frigider: Independent, de lux",1,{"v":1200,"d":"1,200.00 lei"},null,{"$f":"Date[[#This Row],[Cantitate]]*Date[[#This Row],[Costul estimat]]","v":{"v":1200,"d":"1,200 lei"}},{"$f":"Date[[#This Row],[Cantitate]]*Date[[#This Row],[Costul efectiv]]","v":{"v":0,"d":"0 lei"}}]
[null,"Chiuvete","Chiuvetă dublă, din inox, de lux",1,{"v":125,"d":"125.00 lei"},null,{"$f":"Date[[#This Row],[Cantitate]]*Date[[#This Row],[Costul estimat]]","v":{"v":125,"d":"125 lei"}},{"$f":"Date[[#This Row],[Cantitate]]*Date[[#This Row],[Costul efectiv]]","v":{"v":0,"d":"0 lei"}}]
[null,"Ventilație","Hotă: Cu conductă, standard",1,{"v":180,"d":"180.00 lei"},null,{"$f":"Date[[#This Row],[Cantitate]]*Date[[#This Row],[Costul estimat]]","v":{"v":180,"d":"180 lei"}},{"$f":"Date[[#This Row],[Cantitate]]*Date[[#This Row],[Costul efectiv]]","v":{"v":0,"d":"0 lei"}}]
[null,"Pereți","Plăci de fibră (cantitate în metri pătrați)",70,{"v":2,"d":"2.00 lei"},null,{"$f":"Date[[#This Row],[Cantitate]]*Date[[#This Row],[Costul estimat]]","v":{"v":140,"d":"140 lei"}},{"$f":"Date[[#This Row],[Cantitate]]*Date[[#This Row],[Costul efectiv]]","v":{"v":0,"d":"0 lei"}}]
[null,"Ferestre","Ușă glisantă",2,{"v":120,"d":"120.00 lei"},null,{"$f":"Date[[#This Row],[Cantitate]]*Date[[#This Row],[Costul estimat]]","v":{"v":240,"d":"240 lei"}},{"$f":"Date[[#This Row],[Cantitate]]*Date[[#This Row],[Costul efectiv]]","v":{"v":0,"d":"0 lei"}}]
[null,"Altele",{"$nulls":4},{"$f":"Date[[#This Row],[Cantitate]]*Date[[#This Row],[Costul estimat]]","v":{"v":0,"d":"0 lei"}},{"$f":"Date[[#This Row],[Cantitate]]*Date[[#This Row],[Costul efectiv]]","v":{"v":0,"d":"0 lei"}}]
[null,"Total",null,null,{"$f":"SUBTOTAL(109,Date[Costul estimat])","v":{"v":4014,"d":"4,014.00 lei"}},{"$f":"SUBTOTAL(109,Date[Costul efectiv])","v":{"v":0,"d":"0.00 lei"}},{"$f":"SUBTOTAL(109,Date[Costul estimat total])","v":{"v":5375,"d":"5,375.00 lei"}},{"$f":"SUBTOTAL(109,Date[Costul efectiv total])","v":{"v":0,"d":"0.00 lei"}}]
[null,"Subtotal",{"$nulls":4},{"$f":"SUBTOTAL(109,Date[Costul estimat total])","v":{"v":5375,"d":"5,375.00 lei"}},{"$f":"SUBTOTAL(109,Date[Costul efectiv total])","v":{"v":0,"d":"0.00 lei"}}]
[null,"Costuri neașteptate - adăugați 30%",{"$nulls":4},{"$f":"G26*0.3","v":{"v":1612.5,"d":"1,612.50 lei"}},{"$f":"H26*0.3","v":{"v":0,"d":"0.00 lei"}}]
[null,"Total",{"$nulls":4},{"$f":"SUM(G26:G27)","v":{"v":6987.5,"d":"6,987.50 lei"}},{"$f":"SUM(H26:H27)","v":{"v":0,"d":"0.00 lei"}}]